bitfinex/quotes_BTCUSD_20241011
["timestamp","ask_amount","ask_price","bid_price","bid_amount"]
[1728683551111,0.63358729,63048.0,63047.0,0.00062884]
[1728683551351,0.63082727,63048.0,63047.0,0.00062884]
[1728683552763,0.63090749,63048.0,63047.0,0.00062884]
[1728683559716,0.63290749,63048.0,63047.0,0.00062884]
[1728683560416,0.63090749,63048.0,63047.0,0.00062884]
[1728683560601,0.63290749,63048.0,63047.0,0.00062884]
[1728683560847,0.63090749,63048.0,63047.0,0.00062884]
[1728683561031,0.63290749,63048.0,63047.0,0.00062884]
[1728683564916,0.63090749,63048.0,63047.0,0.00062884]
[1728683565366,0.63290749,63048.0,63047.0,0.00062884]
[1728683572238,0.63335713,63048.0,63047.0,0.00062884]
[1728683573594,0.63135713,63048.0,63047.0,0.00062884]
[1728683585277,0.63122678,63048.0,63047.0,0.00062884]
[1728683586506,0.72656678,63048.0,63047.0,0.00062884]
[1728683586739,0.63122678,63048.0,63047.0,0.00062884]
[1728683590135,0.63122071,63048.0,63047.0,0.00062884]
[1728683594841,0.63121967,63048.0,63047.0,0.00062884]
[1728683599258,0.63321967,63048.0,63047.0,0.00062884]
[1728683599489,0.63121967,63048.0,63047.0,0.00062884]
[1728683599694,0.63125686,63048.0,63047.0,0.00062884]
[1728683600776,0.63326639,63048.0,63047.0,0.00062884]
[1728683600982,0.63126639,63048.0,63047.0,0.00062884]
[1728683601624,0.63326639,63048.0,63047.0,0.00062884]
[1728683602040,0.74022638,63048.0,63047.0,0.00062884]
[1728683602241,0.63326639,63048.0,63047.0,0.00062884]
[1728683602894,0.63126639,63048.0,63047.0,0.00062884]
[1728683605410,0.63326639,63048.0,63047.0,0.00062884]
[1728683605908,0.63126639,63048.0,63047.0,0.00062884]
[1728683609373,0.63154162,63048.0,63047.0,0.00062884]
[1728683612224,0.63152458,63048.0,63047.0,0.00062884]
[1728683614280,0.63147837,63048.0,63047.0,0.00062884]
[1728683618920,0.63132762,63048.0,63047.0,0.00062884]
[1728683624124,0.63332762,63048.0,63047.0,0.00062884]
[1728683627512,0.63132762,63048.0,63047.0,0.00062884]
[1728683629527,0.73018827,63048.0,63047.0,0.00062884]
[1728683631754,0.73218827,63048.0,63047.0,0.00062884]
[1728683632144,0.73018827,63048.0,63047.0,0.00062884]
[1728683632293,0.72993761,63048.0,63047.0,0.00062884]
[1728683633320,0.57133566,63048.0,63047.0,0.00062884]
[1728683633548,0.7299124,63048.0,63047.0,0.00062884]
[1728683633748,0.7319124,63048.0,63047.0,0.00062884]
[1728683634602,0.7299124,63048.0,63047.0,0.00062884]
[1728683634813,0.7319124,63048.0,63047.0,0.00062884]
[1728683635904,0.7299124,63048.0,63047.0,0.00062884]
[1728683636308,0.7319124,63048.0,63047.0,0.00062884]
[1728683637155,0.7299124,63048.0,63047.0,0.00062884]
[1728683638313,0.73191221,63048.0,63047.0,0.00062884]
[1728683638720,0.72991221,63048.0,63047.0,0.00062884]
[1728683641843,0.73004413,63048.0,63047.0,0.00062884]
[1728683646544,0.63115542,63048.0,63047.0,0.00062884]
[1728683646750,0.73001607,63048.0,63047.0,0.00062884]
[1728683649675,0.73001607,63048.0,63047.0,0.07982884]
[1728683649914,0.73201607,63048.0,63047.0,0.07982884]
[1728683650852,0.73001607,63048.0,63047.0,0.07982884]
[1728683651541,0.73000984,63048.0,63047.0,0.07982884]
[1728683653062,0.73200984,63048.0,63047.0,0.07982884]
[1728683653260,0.81140984,63048.0,63047.0,0.07982884]
[1728683653462,0.80940984,63048.0,63047.0,0.07982884]
[1728683653869,0.79540984,63048.0,63047.0,0.07982884]
[1728683654275,0.80940984,63048.0,63047.0,0.07982884]
[1728683654902,0.81140984,63048.0,63047.0,0.07982884]
[1728683656185,0.81148513,63048.0,63047.0,0.07982884]
[1728683661193,0.81148632,63048.0,63047.0,0.07982884]
[1728683661401,0.80948632,63048.0,63047.0,0.07982884]
[1728683663815,0.79548632,63048.0,63047.0,0.07982884]
[1728683664039,0.80948632,63048.0,63047.0,0.07982884]
[1728683665147,0.79548632,63048.0,63047.0,0.07982884]
[1728683665549,0.80948632,63048.0,63047.0,0.07982884]
[1728683665994,0.80993817,63048.0,63047.0,0.07982884]
[1728683669259,0.81193817,63048.0,63047.0,0.07982884]
[1728683669682,0.80993817,63048.0,63047.0,0.07982884]
[1728683669912,0.81193817,63048.0,63047.0,0.07982884]
[1728683670835,0.73253817,63048.0,63047.0,0.07982884]
[1728683674193,0.73053817,63048.0,63047.0,0.07982884]
[1728683675585,0.7302378,63048.0,63047.0,0.07982884]
[1728683678918,0.7322378,63048.0,63047.0,0.07982884]
[1728683680610,0.73228074,63048.0,63047.0,0.07982884]
[1728683690166,0.73223727,63048.0,63047.0,0.07982884]
[1728683690938,0.71823727,63048.0,63047.0,0.07982884]
[1728683691396,0.73223727,63048.0,63047.0,0.07982884]
[1728683691845,0.70423727,63048.0,63047.0,0.07982884]
[1728683692050,0.73223727,63048.0,63047.0,0.07982884]
[1728683692527,1.49398727,63048.0,63047.0,8.4e-07]
[1728683692753,0.66953566,63048.0,63047.0,8.4e-07]
[1728683693200,1.05044033,63048.0,63047.0,8.4e-07]
[1728683693406,0.78624594,63048.0,63047.0,8.4e-07]
[1728683693662,0.87724594,63048.0,63047.0,8.4e-07]
[1728683693898,0.87724594,63048.0,63046.0,0.000821]
[1728683693899,1.181016,63047.0,63046.0,0.000821]
[1728683694159,1.72314468,63047.0,63046.0,0.000821]
[1728683695089,1.71925768,63047.0,63046.0,0.000821]
[1728683695319,1.73325768,63047.0,63046.0,1e-06]
[1728683695541,1.89462739,63047.0,63046.0,1e-06]
[1728683695776,2.30446897,63047.0,63046.0,1e-06]
[1728683696013,2.30446897,63047.0,63042.0,0.000821]
[1728683696014,0.956821,63043.0,63042.0,0.000821]
[1728683696238,1.75265624,63043.0,63042.0,0.000821]
[1728683696476,1.97485063,63043.0,63042.0,0.000821]
[1728683696701,2.00245298,63043.0,63042.0,0.000821]
[1728683697372,2.01645298,63043.0,63042.0,0.000821]
[1728683698299,1.50139798,63043.0,63042.0,0.000821]
[1728683698521,2.24706898,63043.0,63042.0,0.000821]
[1728683698747,2.26106898,63043.0,63042.0,0.000821]
[1728683699224,2.42243869,63043.0,63042.0,0.000821]
[1728683699449,2.26106898,63043.0,63042.0,0.000821]
[1728683700377,2.15848198,63043.0,63042.0,0.000821]
[1728683701530,0.283624,63042.0,63041.0,1e-06]
[1728683701765,1.9659294,63042.0,63041.0,1e-06]
[1728683701986,2.12729911,63042.0,63041.0,1e-06]
[1728683702213,2.04130011,63042.0,63041.0,1e-06]
[1728683702451,2.04130011,63042.0,63029.0,0.0927]
[1728683702452,0.660642,63035.0,63029.0,0.0927]
[1728683702704,1.68878066,63035.0,63029.0,0.0927]
[1728683702940,1.91097505,63035.0,63029.0,0.0927]
[1728683703187,1.8121144,63035.0,63029.0,0.0927]
[1728683704110,1.82432815,63035.0,63029.0,0.0927]
[1728683704327,1.82432815,63035.0,63020.0,0.0759]
[1728683704328,0.1,63025.0,63020.0,0.0759]
[1728683704545,0.181674,63022.0,63021.0,0.0927]
[1728683704771,0.281674,63022.0,63021.0,0.0927]
[1728683705445,0.44289801,63022.0,63021.0,0.0927]
[1728683705675,0.54175866,63022.0,63021.0,0.0927]
[1728683706112,0.5,63017.0,63016.0,0.0763]
[1728683706323,0.94291101,63017.0,63016.0,0.0763]
[1728683706752,0.94291101,63017.0,63016.0,0.1712]
[1728683706977,0.94491101,63017.0,63016.0,0.1712]
[1728683707194,1.03752983,63017.0,63016.0,0.1712]
[1728683707631,1.05152983,63017.0,63016.0,0.1712]
[1728683707838,1.05152983,63017.0,63016.0,0.0949]
[1728683708075,1.03752983,63017.0,63016.0,0.0949]
[1728683708314,0.95691101,63017.0,63016.0,0.0949]
[1728683708766,0.97291101,63017.0,63016.0,0.0949]
[1728683708971,0.95691101,63017.0,63016.0,0.0949]
[1728683709199,1.08907335,63017.0,63016.0,0.0949]
[1728683709418,0.281697,63013.0,63012.0,0.0949]
[1728683709634,0.44292101,63013.0,63012.0,0.0949]
[1728683710058,0.53743598,63013.0,63012.0,0.0949]
[1728683710715,0.25871,63008.0,63007.0,0.0763]
[1728683710917,0.41993401,63008.0,63007.0,0.0763]
[1728683711141,0.44293401,63008.0,63007.0,0.0763]
[1728683711349,0.44293401,63008.0,63007.0,0.1712]
[1728683711974,0.45893401,63008.0,63007.0,0.1712]
[1728683712631,0.69357559,63008.0,63007.0,0.1712]
[1728683712857,0.45693401,63008.0,63007.0,0.1712]
[1728683713099,0.45893401,63008.0,63007.0,0.1712]
[1728683713338,0.45693401,63008.0,63007.0,0.0949]
[1728683713569,0.28172,63004.0,63003.0,0.172021]
[1728683713796,0.44294401,63004.0,63003.0,0.172021]
[1728683714460,0.44294401,63004.0,63003.0,0.095721]
[1728683714670,0.45694401,63004.0,63003.0,0.095721]
[1728683715302,0.45894401,63004.0,63003.0,0.095721]
[1728683715505,0.47294401,63004.0,63003.0,0.095721]
[1728683716359,0.47094401,63004.0,63003.0,0.095721]
[1728683716567,0.45694401,63004.0,63003.0,0.095721]
[1728683716786,0.47294401,63004.0,63003.0,0.095721]
[1728683716991,0.47294401,63004.0,63003.0,0.000821]
[1728683716992,0.45894401,63004.0,63003.0,0.000821]
[1728683717841,0.47294401,63004.0,63003.0,0.000821]
[1728683718269,0.59169501,63004.0,63003.0,0.000821]
[1728683718488,0.51808714,63004.0,63003.0,0.000821]
[1728683718705,0.52008714,63004.0,63003.0,0.000821]
[1728683719374,0.47294401,63004.0,63003.0,0.000821]
[1728683719819,0.45894401,63004.0,63003.0,0.000821]
[1728683720050,0.56829401,63004.0,63003.0,0.000821]
[1728683720260,0.45894401,63004.0,63003.0,0.000821]
[1728683720479,0.55780466,63004.0,63003.0,0.000821]
[1728683720713,0.46361877,63004.0,63003.0,0.000821]
[1728683721161,0.47761877,63004.0,63003.0,0.000821]
[1728683721403,0.46361877,63004.0,63003.0,0.000821]
[1728683721625,0.47761877,63004.0,63003.0,0.000821]
[1728683723987,0.47561877,63004.0,63003.0,0.000821]
[1728683724214,0.47761877,63004.0,63003.0,0.000821]
[1728683728485,0.48038083,63004.0,63003.0,0.000821]
[1728683728945,0.46638083,63004.0,63003.0,0.000821]
[1728683729369,0.48038083,63004.0,63003.0,0.000821]
[1728683729803,0.45238083,63004.0,63003.0,0.000821]
[1728683730017,0.48038083,63004.0,63003.0,0.000821]
[1728683730236,0.57573083,63004.0,63003.0,0.000821]
[1728683731325,0.48038083,63004.0,63003.0,0.000821]
[1728683734118,0.57924148,63004.0,63003.0,0.000821]
[1728683736540,0.62632892,63004.0,63003.0,0.000821]
[1728683738440,0.64987264,63004.0,63003.0,0.000821]
[1728683738694,1.13058393,63004.0,63003.0,0.000821]
[1728683738931,0.82831119,63004.0,63003.0,0.000821]
[1728683739159,0.66694148,63004.0,63003.0,0.000821]
[1728683740297,0.84246637,63004.0,63003.0,0.000821]
[1728683740505,0.85646637,63004.0,63003.0,0.000821]
[1728683741380,0.77629148,63004.0,63003.0,0.000821]
[1728683741597,0.88015148,63004.0,63003.0,0.000821]
[1728683741835,0.86615148,63004.0,63003.0,0.000821]
[1728683742050,0.88015148,63004.0,63003.0,0.000821]
[1728683742725,0.86615148,63004.0,63003.0,0.000821]
[1728683742942,0.85215148,63004.0,63003.0,0.000821]
[1728683743380,0.86615148,63004.0,63003.0,0.000821]
[1728683743669,0.85215148,63004.0,63003.0,0.000821]
[1728683743889,1.00741381,63004.0,63003.0,0.000821]
[1728683744337,1.00769708,63004.0,63003.0,0.000821]
[1728683744782,1.16906679,63004.0,63003.0,0.000821]
[1728683745000,1.08636679,63004.0,63003.0,0.000821]
[1728683745459,1.07829628,63004.0,63003.0,0.000821]
[1728683745679,1.29521914,63004.0,63003.0,0.000821]
[1728683745921,1.13384943,63004.0,63003.0,0.000821]
[1728683746144,0.91692657,63004.0,63003.0,0.000821]
[1728683750639,1.46369732,63004.0,63003.0,0.000821]
[1728683750840,1.68104638,63004.0,63003.0,0.000821]
[1728683751489,1.52176398,63004.0,63003.0,0.000821]
[1728683751738,1.68123932,63004.0,63003.0,0.000821]
[1728683751947,1.52176398,63004.0,63003.0,0.000821]
[1728683753461,1.51983729,63004.0,63003.0,0.000821]
[1728683753690,1.52027169,63004.0,63003.0,0.000821]
[1728683757070,1.54512933,63004.0,63003.0,0.000821]
[1728683757497,1.53112933,63004.0,63003.0,0.000821]
[1728683758131,1.51712933,63004.0,63003.0,0.000821]
[1728683758341,1.54512933,63004.0,63003.0,0.000821]
[1728683760684,1.53112933,63004.0,63003.0,0.000821]
[1728683760891,1.44651334,63004.0,63003.0,0.000821]
[1728683761128,1.43251334,63004.0,63003.0,0.000821]
[1728683761369,1.59388305,63004.0,63003.0,0.000821]
[1728683761583,1.44651334,63004.0,63003.0,0.000821]
[1728683763275,1.54537399,63004.0,63003.0,0.000821]
[1728683764757,1.65647061,63004.0,63003.0,0.000821]
[1728683765405,1.50708921,63004.0,63003.0,0.000821]
[1728683766081,1.6341915,63004.0,63003.0,0.000821]
[1728683766977,1.3081595,63004.0,63003.0,0.000821]
[1728683767214,1.2941595,63004.0,63003.0,0.000821]
[1728683767410,1.2801595,63004.0,63003.0,0.000821]
[1728683767620,1.3081595,63004.0,63003.0,0.000821]
[1728683768057,1.3221595,63004.0,63003.0,0.000821]
[1728683768477,1.30539744,63004.0,63003.0,0.000821]
[1728683768691,1.46676715,63004.0,63003.0,0.000821]
[1728683768902,1.30539744,63004.0,63003.0,0.000821]
[1728683769342,1.31929399,63004.0,63003.0,0.000821]
[1728683771571,1.22043334,63004.0,63003.0,0.000821]
[1728683771780,1.31929399,63004.0,63003.0,0.000821]
[1728683772374,1.39324597,63004.0,63003.0,0.000821]
[1728683773486,1.31929399,63004.0,63003.0,0.000821]
[1728683773636,1.31729399,63004.0,63003.0,0.000821]
[1728683774044,1.31929399,63004.0,63003.0,0.000821]
[1728683774312,1.19218689,63004.0,63003.0,0.000821]
[1728683774710,1.18518689,63004.0,63003.0,0.000821]
[1728683774939,1.19018689,63004.0,63003.0,0.000821]
[1728683775350,0.93124489,63004.0,63003.0,0.000821]
[1728683775553,1.24713906,63004.0,63003.0,0.000821]
[1728683775843,1.46469689,63004.0,63003.0,0.000821]
[1728683776256,0.158752,62991.0,62990.0,0.0997]
[1728683776456,0.44297601,62991.0,62990.0,0.0997]
[1728683776871,0.60316559,62991.0,62987.0,0.0001]
[1728683777194,0.68396358,62988.0,62987.0,0.0001]
[1728683777420,0.54384466,62988.0,62987.0,0.0001]
[1728683777971,0.54184466,62988.0,62987.0,0.0001]
[1728683778179,0.87934689,62988.0,62987.0,0.0001]
[1728683778381,0.54384466,62988.0,62987.0,0.0001]
[1728683779216,0.63919466,62988.0,62987.0,0.0001]
[1728683779836,0.65319466,62988.0,62987.0,0.0001]
[1728683780086,0.75693466,62988.0,62987.0,0.0001]
[1728683780326,0.96843437,62988.0,62987.0,0.0001]
[1728683780598,0.5,62984.0,62983.0,0.000821]
[1728683780817,1.04385466,62984.0,62983.0,0.000821]
[1728683781046,1.26141249,62984.0,62983.0,0.000821]
[1728683781295,1.25941249,62984.0,62983.0,0.000821]
[1728683782713,1.26141249,62984.0,62983.0,0.000821]
[1728683782934,1.19055184,62984.0,62983.0,0.000821]
[1728683783824,1.19109198,62984.0,62983.0,0.000821]
[1728683785429,1.35246169,62984.0,62983.0,0.000821]
[1728683786141,1.19109198,62984.0,62983.0,0.000821]
[1728683787571,1.132738,62984.0,62983.0,0.000821]
[1728683787807,1.35083597,62984.0,62983.0,0.000821]
[1728683788240,1.44418597,62984.0,62983.0,0.000821]
[1728683788450,1.69618597,62984.0,62983.0,0.000821]
[1728683788635,1.69674842,62984.0,62983.0,0.000821]
[1728683788836,1.70310842,62984.0,62983.0,0.000821]
[1728683789046,1.81997142,62984.0,62983.0,0.000821]
[1728683789249,1.64623226,62984.0,62983.0,0.000821]
[1728683789511,1.79191469,62984.0,62983.0,0.000821]
[1728683789713,2.33525769,62984.0,62983.0,0.000821]
[1728683789922,2.16157526,62984.0,62983.0,0.000821]
[1728683790162,2.14757526,62984.0,62983.0,0.000821]
[1728683790380,2.17557526,62984.0,62983.0,0.000821]
[1728683790602,2.26927526,62984.0,62983.0,0.000821]
[1728683790831,2.27427526,62984.0,62983.0,0.000821]
[1728683791051,2.24627526,62984.0,62983.0,0.000821]
[1728683791482,2.26027526,62984.0,62983.0,0.000821]
[1728683792363,0.5,62971.0,62961.0,2.315e-05]
[1728683792591,1.04339901,62962.0,62961.0,2.315e-05]
[1728683792822,1.88228698,62962.0,62961.0,2.315e-05]
[1728683793039,2.10295223,62962.0,62961.0,2.315e-05]
[1728683793300,2.20281073,62962.0,62961.0,2.315e-05]
[1728683793522,1.9780541,62962.0,62961.0,2.315e-05]
[1728683793942,0.158906,62931.0,62926.0,0.158915]
[1728683794169,0.09886065,62949.0,62928.0,0.23664158]
[1728683794170,0.26122401,62930.0,62928.0,0.23664158]
[1728683794394,0.1,62928.0,62924.0,0.000821]
[1728683794608,0.158918,62926.0,62924.0,0.000821]
[1728683794816,0.158919,62925.0,62924.0,0.000821]
[1728683795249,0.16122401,62925.0,62924.0,0.000821]
[1728683795466,0.32014301,62925.0,62924.0,0.080721]
[1728683796423,0.43414301,62925.0,62924.0,0.080721]
[1728683796668,0.27522401,62925.0,62924.0,0.080721]
[1728683796888,0.28922401,62925.0,62924.0,0.080721]
[1728683797363,0.27522401,62925.0,62924.0,0.080721]
[1728683797834,0.27522401,62925.0,62924.0,0.239642]
[1728683798829,0.28922401,62925.0,62924.0,0.239642]
[1728683799305,0.27522401,62925.0,62924.0,0.239642]
[1728683799586,0.28922401,62925.0,62924.0,0.239642]
[1728683799804,0.27522401,62925.0,62924.0,0.239642]
[1728683800029,0.27322401,62925.0,62924.0,0.239642]
[1728683800266,0.28722401,62925.0,62924.0,0.239642]
[1728683800712,0.28722401,62925.0,62924.0,0.334542]
[1728683803480,0.026,62925.0,62924.0,0.334542]
[1728683803892,0.026,62925.0,62924.0,0.32848525]
[1728683804582,0.026,62925.0,62924.0,0.4273459]
[1728683805884,0.026,62925.0,62924.0,0.32848525]
[1728683806094,0.026,62925.0,62924.0,0.4273459]
[1728683808415,0.026,62925.0,62924.0,0.4223459]
[1728683809926,0.026,62925.0,62924.0,0.4273459]
[1728683810390,0.026,62925.0,62924.0,0.32848525]
[1728683810610,0.026,62925.0,62924.0,0.4273459]
[1728683811054,0.026,62925.0,62924.0,0.32848525]
[1728683811488,0.026,62925.0,62924.0,0.4273459]
[1728683813084,0.026,62925.0,62924.0,0.4281679]
[1728683813328,0.026,62925.0,62924.0,0.16538625]
[1728683813553,0.026,62925.0,62924.0,0.4231679]
[1728683816639,0.026,62925.0,62924.0,0.32430725]
[1728683817831,0.026,62925.0,62924.0,0.4231679]
[1728683818998,0.026,62925.0,62924.0,0.16538625]
[1728683819213,0.026,62925.0,62924.0,0.4231679]
[1728683823409,0.18722401,62925.0,62924.0,0.16538625]
[1728683823626,0.18722401,62925.0,62924.0,0.095722]
[1728683824205,0.18722401,62925.0,62924.0,0.19458265]
[1728683824379,0.18886801,62925.0,62924.0,0.09968265]
[1728683826310,0.34778701,62925.0,62924.0,0.09968265]
[1728683827496,0.18886801,62925.0,62924.0,0.09968265]
[1728683830888,0.18886801,62925.0,62924.0,0.000822]
[1728683834925,0.34778701,62925.0,62924.0,0.000822]
[1728683835134,0.18886801,62925.0,62924.0,0.000822]
[1728683836223,0.34778701,62925.0,62924.0,0.000822]
[1728683836429,0.18886801,62925.0,62924.0,0.000822]
[1728683836643,0.34778701,62925.0,62924.0,0.000822]
[1728683837284,0.18886801,62925.0,62924.0,0.000822]
[1728683837734,0.34778701,62925.0,62924.0,0.000822]
[1728683837946,0.18886801,62925.0,62924.0,0.000822]
[1728683839901,0.18886801,62925.0,62924.0,0.09968265]
[1728683840774,0.34778701,62925.0,62924.0,0.09968265]
[1728683841253,0.18886801,62925.0,62924.0,0.09968265]
[1728683843969,0.18886801,62925.0,62924.0,0.000822]
[1728683845022,0.1719,62920.0,62913.0,0.5]
[1728683845287,0.49058366,62914.0,62913.0,0.5]
[1728683845498,0.78705063,62914.0,62913.0,0.5]
[1728683845713,0.87285606,62914.0,62913.0,0.5]
[1728683846369,0.71393166,62914.0,62913.0,0.5]
[1728683847025,0.78491157,62914.0,62913.0,0.5]
[1728683847230,0.71393166,62914.0,62913.0,0.5]
[1728683847432,0.72793166,62914.0,62913.0,0.5]
[1728683847878,0.71393166,62914.0,62913.0,0.5]
[1728683848308,0.77519388,62914.0,62913.0,0.5]
[1728683848537,0.89130137,62914.0,62913.0,0.500821]
[1728683848773,0.72793166,62914.0,62913.0,0.500821]
[1728683849433,0.71593166,62914.0,62913.0,0.500821]
[1728683849691,0.71393166,62914.0,62913.0,0.500821]
[1728683849912,0.87308066,62914.0,62913.0,0.500821]
[1728683850141,0.91445397,62914.0,62913.0,0.500821]
[1728683850339,0.91914745,62914.0,62913.0,0.500821]
[1728683850817,0.8062868,62914.0,62913.0,0.500821]
[1728683851035,0.7114218,62914.0,62913.0,0.500821]
[1728683855398,0.95006338,62914.0,62913.0,0.500821]
[1728683855660,0.94806338,62914.0,62913.0,0.500821]
[1728683856741,0.7114218,62914.0,62913.0,0.500821]
[1728683858019,0.8179308,62914.0,62913.0,0.500821]
[1728683859529,0.7750888,62914.0,62913.0,0.500821]
[1728683859768,0.8815978,62914.0,62913.0,0.500821]
[1728683860982,0.8740198,62914.0,62913.0,0.500821]
[1728683861466,0.7675108,62914.0,62913.0,0.500821]
[1728683862480,0.7675108,62914.0,62913.0,0.495821]
[1728683864652,1.30535738,62914.0,62913.0,0.495821]
[1728683864886,1.40421803,62914.0,62913.0,0.495821]
[1728683866077,1.40621803,62914.0,62913.0,0.495821]
[1728683866330,1.40421803,62914.0,62913.0,0.495821]
[1728683866565,1.10301303,62914.0,62913.0,0.495821]
[1728683867044,0.86637145,62914.0,62913.0,0.495821]
[1728683867533,1.31304245,62914.0,62913.0,0.495821]
[1728683868251,1.47441216,62914.0,62913.0,0.495821]
[1728683868517,1.2141818,62914.0,62913.0,0.495821]
[1728683868741,0.93706791,62914.0,62913.0,0.495821]
[1728683869200,0.93594868,62914.0,62913.0,0.495821]
[1728683869619,0.93794868,62914.0,62913.0,0.495821]
[1728683869872,0.93594868,62914.0,62913.0,0.495821]
[1728683870970,0.93794868,62914.0,62913.0,0.495821]
[1728683874285,0.98507966,62914.0,62913.0,0.495821]
[1728683874507,0.93794868,62914.0,62913.0,0.495821]
[1728683875392,0.98507966,62914.0,62913.0,0.495821]
[1728683876549,1.08394031,62914.0,62913.0,0.495821]
[1728683876969,1.08392942,62914.0,62913.0,0.495821]
[1728683877188,1.03680933,62914.0,62913.0,0.495821]
[1728683877632,1.08393151,62914.0,62913.0,0.495821]
[1728683877846,1.03680933,62914.0,62913.0,0.495821]
[1728683878084,1.10748947,62914.0,62913.0,0.495821]
[1728683878521,2.25102233,62914.0,62913.0,0.495821]
[1728683879152,2.23318933,62914.0,62913.0,0.495821]
[1728683879365,2.39170405,62914.0,62913.0,0.495821]
[1728683880869,2.39173846,62914.0,62913.0,0.495821]
[1728683881079,2.39173846,62914.0,62913.0,0.432241]
[1728683881080,2.23318933,62914.0,62913.0,0.432241]
[1728683881284,2.30389782,62914.0,62913.0,0.432241]
[1728683882313,2.23318933,62914.0,62913.0,0.432241]
[1728683883099,2.23483133,62914.0,62913.0,0.432241]
[1728683883320,2.24021596,62914.0,62913.0,0.432241]
[1728683884198,2.33449395,62914.0,62913.0,0.432241]
[1728683884402,2.33649395,62914.0,62913.0,0.432241]
[1728683884609,2.24221596,62914.0,62913.0,0.432241]
[1728683884814,2.21261596,62914.0,62913.0,0.432241]
[1728683885028,2.05405812,62914.0,62913.0,0.432241]
[1728683885247,2.14843335,62914.0,62913.0,0.432241]
[1728683885663,2.05405812,62914.0,62913.0,0.432241]
[1728683889991,2.05441108,62914.0,62913.0,0.432241]
[1728683890398,2.41946901,62914.0,62913.0,0.432241]
[1728683890613,2.41946162,62914.0,62913.0,0.432241]
[1728683891024,1.83819974,62914.0,62913.0,0.432241]
[1728683891254,1.77414974,62914.0,62913.0,0.432241]
[1728683891695,1.9338145,62914.0,62913.0,0.432241]
[1728683891926,1.57173874,62914.0,62913.0,0.432241]
[1728683892417,1.55390574,62914.0,62913.0,0.432241]
[1728683893870,1.7135705,62914.0,62913.0,0.432241]
[1728683894565,1.17157768,62914.0,62913.0,0.432241]
[1728683894822,1.55379546,62914.0,62913.0,0.432241]
[1728683896723,1.71516517,62914.0,62913.0,0.432241]
[1728683897137,1.55379546,62914.0,62913.0,0.432241]
[1728683898780,1.99349769,62914.0,62913.0,0.273291]
[1728683899196,2.01007982,62914.0,62913.0,0.273291]
[1728683899404,2.00852641,62914.0,62913.0,0.209711]
[1728683899613,2.00852641,62914.0,62913.0,0.114341]
[1728683900459,0.03,62910.0,62909.0,4e-07]
[1728683900664,0.82725119,62910.0,62909.0,4e-07]
[1728683902844,0.64352989,62910.0,62909.0,4e-07]
[1728683903056,0.95713127,62910.0,62909.0,4e-07]
[1728683903466,0.81507061,62910.0,62909.0,4e-07]
[1728683904686,0.83996551,62910.0,62909.0,4e-07]
[1728683905508,0.83296551,62910.0,62909.0,4e-07]
[1728683905941,0.73410486,62910.0,62909.0,0.0008214]
[1728683906154,0.83296551,62910.0,62909.0,0.0008214]
[1728683906568,0.97621151,62910.0,62909.0,0.0008214]
[1728683906791,0.83296551,62910.0,62909.0,0.0008214]
[1728683906993,0.83796551,62910.0,62909.0,0.0008214]
[1728683907197,0.83296551,62910.0,62909.0,0.0008214]
[1728683907403,0.83996551,62910.0,62909.0,0.0008214]
[1728683907606,0.5,62907.0,62903.0,0.0947214]
[1728683907817,0.56154071,62904.0,62903.0,0.0947214]
[1728683908066,0.78903339,62904.0,62903.0,0.0947214]
[1728683908273,0.6734524,62904.0,62903.0,0.0947214]
[1728683908496,0.79180036,62904.0,62903.0,0.0947214]
[1728683908699,0.6734524,62904.0,62903.0,0.0947214]
[1728683908900,0.258977,62902.0,62901.0,0.0006]
[1728683909107,0.67091225,62902.0,62901.0,0.0006]
[1728683909512,0.78926159,62902.0,62901.0,0.0006]
[1728683910573,0.67091225,62902.0,62901.0,0.0006]
[1728683911634,0.68491225,62902.0,62901.0,0.0006]
[1728683913699,0.5263021,62902.0,62901.0,0.0006]
[1728683913926,0.68531422,62902.0,62901.0,0.0006]
[1728683915955,0.68731422,62902.0,62901.0,0.0006]
[1728683916206,0.82936993,62902.0,62901.0,0.0006]
[1728683916872,0.82736993,62902.0,62901.0,0.0006]
[1728683917099,0.82936993,62902.0,62901.0,0.0006]
[1728683917833,0.68731422,62902.0,62901.0,0.0006]
[1728683918082,0.85611422,62902.0,62901.0,0.0006]
[1728683918331,0.85611422,62902.0,62901.0,0.001421]
[1728683918559,0.85691476,62902.0,62901.0,0.001421]
[1728683919024,0.76391476,62902.0,62901.0,0.001421]
[1728683919731,0.76191476,62902.0,62901.0,0.001421]
[1728683919977,0.68611476,62902.0,62901.0,0.001421]
[1728683920461,0.82818167,62902.0,62901.0,0.001421]
[1728683920711,0.82818112,62902.0,62901.0,0.001421]
[1728683921169,0.68611476,62902.0,62901.0,0.001421]
[1728683921621,0.82818418,62902.0,62901.0,0.001421]
[1728683922123,0.68611476,62902.0,62901.0,0.001421]
[1728683923340,0.5263021,62902.0,62901.0,0.001421]
[1728683923571,0.68605236,62902.0,62901.0,0.001421]
[1728683923797,0.68494558,62902.0,62901.0,0.001421]
[1728683925620,0.962085,62899.0,62898.0,1e-06]
[1728683925860,1.67291327,62899.0,62898.0,1e-06]
[1728683926103,1.99542428,62899.0,62898.0,1e-06]
[1728683926522,2.09428493,62899.0,62898.0,1e-06]
[1728683926703,1.99542428,62899.0,62898.0,1e-06]
[1728683927012,3.49077119,62899.0,62898.0,1e-06]
[1728683927218,3.41874319,62899.0,62898.0,1e-06]
[1728683927435,3.51914564,62899.0,62898.0,1e-06]
[1728683927659,3.67897355,62899.0,62898.0,1e-06]
[1728683928076,3.51883662,62899.0,62898.0,1e-06]
[1728683928298,3.53283662,62899.0,62898.0,1e-06]
[1728683928514,3.6926139,62899.0,62898.0,1e-06]
[1728683928957,3.53283662,62899.0,62898.0,1e-06]
[1728683929175,3.51883662,62899.0,62898.0,1e-06]
[1728683929381,3.67859508,62899.0,62898.0,1e-06]
[1728683929614,3.53122537,62899.0,62898.0,1e-06]
[1728683929819,3.52922537,62899.0,62898.0,1e-06]
[1728683930003,3.53122537,62899.0,62898.0,1e-06]
[1728683930258,3.43236472,62899.0,62898.0,1e-06]
[1728683930682,3.53122537,62899.0,62898.0,1e-06]
[1728683930868,3.65306621,62899.0,62898.0,1e-06]
[1728683931146,3.65806621,62899.0,62898.0,1e-06]
[1728683931370,3.55920556,62899.0,62898.0,1e-06]
[1728683931583,3.49830775,62899.0,62898.0,1e-06]